lending/lending_fUSD_20240809
["ID","MTS","AMOUNT","RATE_DAILY","PERIOD"]
[334500370,1723169444147,-869.65,0.00024288,5]
[334500371,1723169444157,-2511.65,0.00024288,5]
[334500372,1723169444167,-975.71,0.00024288,5]
[334500373,1723169444176,-926.84,0.00024288,5]
[334500374,1723169444188,-500.0,0.00024288,5]
[334500375,1723169444198,-500.0,0.00024288,5]
[334500376,1723169444208,-3329.49,0.00024288,5]
[334500377,1723169444218,-2791.96,0.00024288,5]
[334500378,1723169444228,-500.0,0.00024288,5]
[334500379,1723169444237,-927.73,0.00024288,5]
[334500380,1723169444247,-1449.12,0.00024288,5]
[334500381,1723169444256,-500.0,0.00024288,5]
[334500382,1723169444269,-3758.88,0.00024288,5]
[334500383,1723169444279,-500.0,0.00024288,5]
[334500384,1723169444290,-500.0,0.00024288,5]
[334500385,1723169444299,-587.05548572,0.00024288,5]
[334500386,1723169444308,-500.0,0.00024288,5]
[334500387,1723169444318,-3055.55,0.00024288,5]
[334500388,1723169444327,-500.0,0.00024288,5]
[334500389,1723169444336,-3201.67,0.00024288,5]
[334500390,1723169444347,-500.0,0.00024288,5]
[334500391,1723169444356,-2957.65,0.00024288,5]
[334500392,1723169444365,-500.0,0.00024288,5]
[334500393,1723169444376,-1217.55,0.00024288,5]
[334500394,1723169444387,-500.0,0.00024288,5]
[334500395,1723169444396,-616.62,0.00024288,5]
[334500396,1723169444406,-2616.64,0.00024288,5]
[334500397,1723169444415,-500.0,0.00024288,5]
[334500398,1723169444424,-3863.95,0.00024288,5]
[334500399,1723169444434,-500.0,0.00024288,5]
[334500400,1723169444444,-500.0,0.00024288,5]
[334500401,1723169444453,-2523.12,0.00024288,5]
[334500402,1723169444462,-500.0,0.00024288,5]
[334500403,1723169444472,-3842.02,0.00024288,5]
[334500404,1723169444481,-500.0,0.00024288,5]
[334500405,1723169444491,-2715.27,0.00024288,5]
[334500406,1723169444500,-500.0,0.00024288,5]
[334500407,1723169444510,-683.81,0.00024288,5]
[334500408,1723169444521,-841.86,0.00024288,5]
[334500409,1723169444530,-554.8,0.00024288,5]
[334500410,1723169444539,-500.0,0.00024288,5]
[334500411,1723169444549,-1232.05,0.00024288,5]
[334500412,1723169444558,-1992.4,0.00024288,5]
[334500413,1723169444567,-500.0,0.00024288,5]
[334500414,1723169444576,-500.0,0.00024288,5]
[334500415,1723169444585,-4428.65,0.00024288,5]
[334500416,1723169444595,-150.0,0.00024291,2]
[334500417,1723169444604,-150.0,0.00024296,2]
[334500418,1723169444613,-37869.27958319,0.00024297,2]
[334500419,1723169444622,-150.0,0.00024298,2]
[334500420,1723169444632,-1560.34761417,0.00024298,2]
[334500421,1723169444641,-150.0,0.00024298,2]
[334500422,1723169444651,-1000.0,0.00024299,2]
[334500423,1723169444660,-150.0,0.000243,2]
[334500424,1723169444671,-1500.0,0.00024304,2]
[334500425,1723169444680,-150.0,0.00024304,2]
[334500426,1723169444690,-1500.0,0.00024307,2]
[334500427,1723169444699,-150.0,0.00024307,2]
[334500428,1723169444709,-1500.0,0.00024309,2]
[334500429,1723169444718,-1500.0,0.0002431,2]
[334500430,1723169444729,-150.0,0.00024312,2]
[334500431,1723169444739,-150.0,0.00024313,2]
[334500432,1723169444748,-150.0,0.00024314,2]
[334500433,1723169444758,-150.0,0.00024316,2]
[334500434,1723169444768,-150.0,0.00024316,2]
[334500435,1723169444778,-150.0,0.00024316,2]
[334500436,1723169444787,-150.0,0.0002432,2]
[334500437,1723169444796,-150.0,0.00024321,2]
[334500438,1723169444805,-150.0,0.00024321,2]
[334500439,1723169444815,-150.0,0.00024322,2]
[334500440,1723169444824,-150.0,0.00024325,2]
[334500441,1723169444833,-150.0,0.00024325,2]
[334500442,1723169444842,-150.0,0.00024327,2]
[334500443,1723169444851,-150.0,0.0002433,2]
[334500444,1723169444861,-150.0,0.00024334,2]
[334500445,1723169444870,-1500.0,0.00024334,2]
[334500446,1723169444880,-150.0,0.00024336,2]
[334500447,1723169444890,-150.0,0.00024336,2]
[334500448,1723169444899,-150.0,0.00024337,2]
[334500449,1723169444909,-150.0,0.00024344,2]
[334500450,1723169444918,-150.0,0.00024347,2]
[334500451,1723169444927,-150.0,0.00024348,2]
[334500452,1723169444937,-150.0,0.00024351,2]
[334500453,1723169444946,-150.61198941,0.00024352,2]
[334500454,1723169444956,-150.0,0.00024355,2]
[334500455,1723169444965,-150.0,0.00024357,2]
[334500456,1723169444975,-150.0,0.0002436,2]
[334500457,1723169444984,-150.0,0.00024361,2]
[334500458,1723169444993,-150.0,0.00024364,2]
[334500459,1723169445003,-150.0,0.00024364,2]
[334500460,1723169445014,-150.0,0.00024364,2]
[334500461,1723169445028,-300.24753196,0.00024365,2]
[334500462,1723169445037,-200.0,0.00024373,2]
[334500463,1723169445047,-200.0,0.00024373,2]
[334500464,1723169445056,-150.0,0.00024375,2]
[334500465,1723169445066,-150.0,0.00024376,2]
[334500466,1723169445075,-150.0,0.00024377,2]
[334500467,1723169445085,-150.0,0.00024378,2]
[334500468,1723169445094,-150.0,0.00024378,2]
[334500469,1723169445105,-150.0,0.00024378,2]
[334500470,1723169445115,-150.0,0.00024382,2]
[334500471,1723169445124,-150.0,0.00024383,2]
[334500472,1723169445134,-150.0,0.00024386,2]
[334500473,1723169445143,-150.0,0.00024388,2]
[334500474,1723169445152,-1500.0,0.00024388,2]
[334500475,1723169445161,-150.0,0.00024388,2]
[334500476,1723169445170,-150.0,0.00024388,2]
[334500477,1723169445180,-1500.0,0.0002439,2]
[334500478,1723169445189,-1511.78510771,0.00024392,2]
[334500479,1723169445199,-150.0,0.00024392,2]
[334500480,1723169445208,-150.0,0.00024396,2]
[334500481,1723169445217,-500.0,0.00024397,5]
[334500482,1723169445227,-500.0,0.00024397,5]
[334500483,1723169445236,-500.0,0.00024397,5]
[334500484,1723169445245,-151.0537592,0.00024397,2]
[334500485,1723169445254,-1507.18,0.00024397,5]
[334500486,1723169445265,-500.0,0.00024397,5]
[334500487,1723169445279,-265.30451,0.00024397,2]
[334500488,1723169445288,-500.0,0.00024397,5]
[334500489,1723169445297,-500.0,0.00024397,5]
[334500490,1723169445306,-500.0,0.00024397,5]
[334500491,1723169445316,-500.0,0.00024397,5]
[334500492,1723169445325,-500.0,0.00024397,5]
[334500493,1723169445334,-500.0,0.00024397,5]
[334500494,1723169445344,-960.29728573,0.00024397,2]
[334500495,1723169445353,-371.1475442,0.00024397,5]
[334500496,1723169445363,-916.61,0.00024397,5]
[334500497,1723169445371,-500.0,0.00024397,2]
[334500498,1723169445381,-500.0,0.00024397,5]
[334500499,1723169445390,-3202.97,0.00024397,5]
[334500500,1723169445399,-150.0,0.00024397,2]
[334500501,1723169445408,-900.44,0.00024397,5]
[334500502,1723169445418,-184.05300952,0.00024397,5]
[334500503,1723169445427,-500.0,0.00024397,5]
[334500504,1723169445436,-543.68,0.00024397,5]
[334500505,1723169445445,-500.0,0.00024397,5]
[334500506,1723169445454,-501.44342749,0.00024398,5]
[334500507,1723169445464,-500.18671325,0.00024398,5]
[334500508,1723169445472,-498.75310951,0.00024398,5]
[334500509,1723169445482,-501.64089419,0.00024398,5]
[334500510,1723169445491,-501.52388611,0.00024398,5]
[334500511,1723169445500,-500.93349912,0.00024398,5]
[334500512,1723169445509,-500.7284163,0.00024398,5]
[334500513,1723169445520,-500.0,0.00024398,5]
[334500514,1723169445529,-500.0,0.00024398,5]
[334500515,1723169445537,-500.7618093,0.00024398,5]
[334500516,1723169445546,-500.0,0.00024398,5]
[334500517,1723169445555,-500.0,0.00024398,5]
[334500518,1723169445564,-500.0,0.00024398,5]
[334500519,1723169445573,-500.0,0.00024398,5]
[334500520,1723169445582,-500.0,0.00024398,5]
[334500521,1723169445591,-500.0,0.00024398,5]
[334500522,1723169445600,-501.52361844,0.00024398,5]
[334500523,1723169445609,-500.0,0.00024398,5]
[334500524,1723169445618,-502.40207266,0.00024398,5]
[334500525,1723169445627,-502.25362123,0.00024398,5]
[334500526,1723169445636,-500.0,0.00024398,5]
[334500527,1723169445645,-502.80384263,0.00024398,5]
[334500528,1723169445654,-500.0,0.00024398,5]
[334500529,1723169445663,-502.01797971,0.00024398,5]
[334500530,1723169445672,-501.93072301,0.00024398,5]
[334500531,1723169445681,-501.95845279,0.00024398,5]
[334500532,1723169445690,-500.0,0.00024398,5]
[334500533,1723169445699,-516.53709578,0.00024398,5]
[334500534,1723169445798,-501.74210934,0.00024398,5]
[334500535,1723169445807,-500.0,0.00024398,5]
[334500536,1723169445817,-504.12112539,0.00024398,5]
[334500537,1723169445826,-500.24760398,0.00024398,5]
[334500538,1723169445835,-500.72952738,0.00024398,5]
[334500539,1723169445844,-500.0,0.00024398,5]
[334500540,1723169445854,-508.02910586,0.00024398,5]
[334500541,1723169445863,-500.0,0.00024398,5]
[334500542,1723169445873,-503.87741363,0.00024398,5]
[334500543,1723169445882,-500.0,0.00024398,5]
[334500544,1723169445892,-503.42489243,0.00024398,5]
[334500545,1723169445901,-500.0,0.00024398,5]
[334500546,1723169445910,-608.61494168,0.00024398,5]
[334500547,1723169445920,-502.04492881,0.00024398,5]
[334500548,1723169445929,-528.26735842,0.00024398,5]
[334500549,1723169445938,-500.0,0.00024398,5]
[334500550,1723169445947,-500.14616426,0.00024398,5]
[334500551,1723169445957,-207.17784233,0.00024398,5]
[334500552,1723169445967,-500.0,0.00024398,5]
[334500553,1723169445976,-500.0,0.00024398,5]
[334500554,1723169445985,-460.44882135,0.00024398,5]
[334500555,1723169445995,-500.0,0.00024398,5]
[334500556,1723169446004,-500.0,0.00024398,5]
[334500557,1723169446015,-609.36593201,0.00024398,5]
[334500558,1723169446027,-500.0,0.00024398,5]
[334500559,1723169446036,-511.459113,0.00024398,5]
[334500560,1723169446046,-2978.6,0.00024398,5]
[334500561,1723169446055,-500.59559076,0.00024398,5]
[334500562,1723169446065,-502.04964854,0.00024398,5]
[334500563,1723169446074,-501.76837077,0.00024398,5]
[334500564,1723169446084,-500.0,0.00024398,5]
[334500565,1723169446094,-501.34664608,0.00024398,5]
[334500566,1723169446106,-2469.61,0.00024398,5]
[334500567,1723169446116,-858.14,0.00024398,5]
[334500568,1723169446125,-1327.89,0.00024398,5]
[334500569,1723169446134,-500.0,0.00024398,5]
[334500570,1723169446144,-500.0,0.00024398,5]
[334500571,1723169446153,-722.2,0.00024398,5]
[334500572,1723169446162,-1266.9,0.00024398,5]
[334500573,1723169446171,-500.0,0.00024398,5]
[334500574,1723169446181,-813.03,0.00024398,5]
[334500575,1723169446190,-605.88,0.00024398,5]
[334500576,1723169446200,-500.0,0.00024398,5]
[334500577,1723169446210,-500.0,0.00024398,5]
[334500578,1723169446219,-500.0,0.00024398,5]
[334500579,1723169446228,-500.0,0.00024398,5]
[334500580,1723169446237,-500.0,0.00024398,5]
[334500581,1723169446246,-708.1,0.00024398,5]
[334500582,1723169446255,-604.52,0.00024398,5]
[334500583,1723169446266,-500.0,0.00024398,5]
[334500584,1723169446276,-500.0,0.00024398,5]
[334500585,1723169446285,-639.58,0.00024398,5]
[334500586,1723169446294,-1576.89,0.00024398,5]
[334500587,1723169446303,-500.0,0.00024398,5]
[334500588,1723169446312,-500.0,0.00024398,5]
[334500589,1723169446321,-500.0,0.00024398,5]
[334500590,1723169446331,-500.0,0.00024398,5]
[334500591,1723169446341,-6456.68,0.00024398,5]
[334500592,1723169446350,-500.0,0.00024398,5]
[334500593,1723169446360,-500.0,0.00024398,5]
[334500594,1723169446371,-500.0,0.00024398,5]
[334500595,1723169446381,-500.0,0.00024398,5]
[334500596,1723169446391,-1517.91,0.00024398,5]
[334500597,1723169446402,-793.65,0.00024398,5]
[334500598,1723169446412,-500.0,0.00024398,5]
[334500599,1723169446423,-500.0,0.00024398,5]
[334500600,1723169446435,-806.06,0.00024398,5]
[334500601,1723169446446,-500.0,0.00024398,5]
[334500602,1723169446456,-500.0,0.00024398,5]
[334500603,1723169446466,-500.0,0.00024398,5]
[334500604,1723169446477,-500.0,0.00024398,5]
[334500605,1723169446487,-500.0,0.00024398,5]
[334500606,1723169446498,-500.0,0.00024398,5]
[334500607,1723169446507,-500.0,0.00024398,5]
[334500608,1723169446518,-2697.27,0.00024398,5]
[334500609,1723169446527,-500.0,0.00024398,5]
[334500610,1723169446536,-500.0,0.00024398,5]
[334500611,1723169446545,-500.0,0.00024398,5]
[334500612,1723169446554,-1161.67,0.00024398,5]
[334500613,1723169446563,-500.0,0.00024398,5]
[334500614,1723169446572,-500.0,0.00024398,5]
[334500615,1723169446581,-500.0,0.00024398,5]
[334500616,1723169446590,-500.0,0.00024398,5]
[334500617,1723169446599,-500.0,0.00024398,5]
[334500618,1723169446608,-588.06,0.00024398,5]
[334500619,1723169446617,-3409.1,0.00024398,5]
[334500620,1723169446626,-1406.27,0.00024398,5]
[334500621,1723169446635,-579.54,0.00024398,5]
[334500622,1723169446644,-2753.1,0.00024398,5]
[334500623,1723169446653,-500.0,0.00024398,5]
[334500624,1723169446662,-2170.45,0.00024398,5]
[334500625,1723169446671,-801.48,0.00024398,5]
[334500627,1723169446680,-500.0,0.00024398,5]
[334500629,1723169446690,-648.1,0.00024398,5]
[334500630,1723169446699,-500.0,0.00024398,5]
[334500631,1723169446708,-542.44,0.00024398,5]
[334500632,1723169446719,-500.0,0.00024398,5]
[334500633,1723169446731,-500.0,0.00024398,5]
[334500634,1723169446742,-2522.23,0.00024398,5]
[334500635,1723169446752,-3235.97,0.00024398,5]
[334500636,1723169446763,-696.32,0.00024398,5]
[334500637,1723169446772,-500.0,0.00024398,5]
[334500638,1723169446781,-500.0,0.00024398,5]
[334500639,1723169446791,-500.0,0.00024398,5]
[334500640,1723169446801,-500.0,0.00024398,5]
[334500641,1723169446810,-762.8,0.00024398,5]
[334500642,1723169446819,-1200.24,0.00024398,5]
[334500643,1723169446828,-500.0,0.00024398,5]
[334500644,1723169446837,-250.57395605,0.00024398,5]
[334500645,1723169446847,-500.0,0.00024398,5]
[334500646,1723169446855,-990.0,0.00024398,5]
[334500647,1723169446865,-500.0,0.00024398,5]
[334500648,1723169446874,-500.0,0.00024398,5]
[334500649,1723169446883,-1413.33,0.00024398,5]
[334500650,1723169446892,-500.0,0.00024398,5]
[334500651,1723169446901,-500.0,0.00024398,5]
[334500652,1723169446911,-4373.18,0.00024398,5]
[334500653,1723169446921,-500.0,0.00024398,5]
[334500654,1723169446930,-725.45,0.00024398,5]
[334500655,1723169446940,-1163.23,0.00024398,5]
[334500656,1723169446951,-500.0,0.00024398,5]
[334500657,1723169446961,-539.49439882,0.00024398,5]
[334500658,1723169446971,-1054.89,0.00024398,5]
[334500659,1723169446980,-995.57,0.00024398,5]
[334500660,1723169446991,-500.0,0.00024398,5]
[334500661,1723169447001,-1323.81,0.00024398,5]
[334500662,1723169447011,-500.0,0.00024398,5]
[334500663,1723169447022,-500.0,0.00024398,5]
[334500664,1723169447034,-738.6,0.00024398,5]
[334500665,1723169447043,-900.28,0.00024398,5]
[334500666,1723169447053,-670.2,0.00024398,5]
[334500667,1723169447063,-500.0,0.00024398,5]
[334500668,1723169447074,-500.0,0.00024398,5]
[334500669,1723169447083,-500.0,0.00024398,5]
[334500670,1723169447093,-500.0,0.00024398,5]
[334500671,1723169447105,-1354.12,0.00024398,5]
[334500672,1723169447115,-500.0,0.00024398,5]
[334500673,1723169447125,-500.0,0.00024398,5]
[334500674,1723169447135,-500.0,0.00024398,5]
[334500675,1723169447145,-500.0,0.00024398,5]
[334500676,1723169447154,-500.0,0.00024398,5]
[334500677,1723169447163,-500.0,0.00024398,5]
[334500678,1723169447173,-1332.41,0.00024398,5]
[334500679,1723169447183,-500.0,0.00024398,5]
[334500680,1723169447194,-500.0,0.00024398,5]
[334500681,1723169447204,-500.0,0.00024398,5]
[334500682,1723169447213,-898.02,0.00024398,5]
[334500683,1723169447223,-965.55,0.00024398,5]
[334500684,1723169447234,-500.0,0.00024398,5]
[334500685,1723169447243,-500.0,0.00024398,5]
[334500686,1723169447252,-710.5,0.00024398,5]
[334500687,1723169447354,-500.0,0.00024398,5]
[334500688,1723169447364,-500.0,0.00024398,5]
[334500689,1723169447373,-518.10055621,0.00024398,5]
[334500690,1723169447383,-1117.97,0.00024398,5]
[334500691,1723169447392,-500.0,0.00024398,5]
[334500692,1723169447402,-1473.13,0.00024398,5]
[334500693,1723169447411,-500.0,0.00024398,5]
[334500694,1723169447421,-500.0,0.00024398,5]
[334500695,1723169447430,-1301.42,0.00024398,5]
[334500696,1723169447440,-500.0,0.00024398,5]
[334500697,1723169447448,-1629.88,0.00024398,5]
[334500698,1723169447458,-500.0,0.00024398,5]
[334500699,1723169447467,-500.0,0.00024398,5]
[334500700,1723169447477,-500.0,0.00024398,5]
[334500701,1723169447486,-500.0,0.00024398,5]
[334500702,1723169447495,-500.0,0.00024398,5]
[334500703,1723169447505,-1076.54,0.00024398,5]
[334500704,1723169447515,-500.0,0.00024398,5]
[334500705,1723169447524,-500.0,0.00024398,5]
[334500706,1723169447535,-960.47,0.00024398,5]
[334500707,1723169447545,-1862.9,0.00024398,5]
[334500708,1723169447555,-675.12,0.00024398,5]
[334500709,1723169447565,-500.0,0.00024398,5]
[334500710,1723169447575,-500.0,0.00024398,5]
[334500711,1723169447584,-500.0,0.00024398,5]
[334500712,1723169447594,-795.68,0.00024398,5]
[334500713,1723169447603,-500.0,0.00024398,5]
[334500714,1723169447612,-171.94485381,0.00024398,5]
[334500715,1723169447621,-1813.33,0.00024398,5]
[334500716,1723169447631,-500.0,0.00024398,5]
[334500717,1723169447640,-1012.51,0.00024398,5]
[334500718,1723169447650,-500.0,0.00024398,5]
[334500719,1723169447660,-500.0,0.00024398,5]
[334500720,1723169447669,-500.0,0.00024398,5]
[334500721,1723169447679,-500.0,0.00024398,5]
[334500722,1723169447688,-500.0,0.00024398,5]
[334500723,1723169447698,-500.0,0.00024398,5]
[334500724,1723169447708,-500.0,0.00024398,5]
[334500725,1723169447718,-868.85,0.00024398,5]
[334500726,1723169447727,-500.0,0.00024398,5]
[334500727,1723169447737,-559.55456774,0.00024398,5]
[334500728,1723169447746,-1150.69,0.00024398,5]
[334500729,1723169447755,-500.0,0.00024398,5]
[334500730,1723169447765,-500.0,0.00024398,5]
[334500731,1723169447774,-500.0,0.00024398,5]
[334500732,1723169447784,-500.0,0.00024398,5]
[334500733,1723169447793,-500.0,0.00024398,5]
[334500734,1723169447802,-596.7568824,0.00024398,5]
[334500735,1723169447811,-500.0,0.00024398,5]
[334500736,1723169447821,-500.0,0.00024398,5]
[334500737,1723169447830,-500.0,0.00024398,5]
[334500738,1723169447839,-500.0,0.00024398,5]
[334500739,1723169447848,-500.0,0.00024398,5]
[334500740,1723169447857,-500.0,0.00024398,5]
[334500741,1723169447867,-500.0,0.00024398,5]
[334500742,1723169447876,-559.86,0.00024398,5]
[334500743,1723169447885,-500.0,0.00024398,5]
[334500744,1723169447894,-500.0,0.00024398,5]
[334500745,1723169447905,-500.0,0.00024398,5]
[334500746,1723169447915,-500.0,0.00024398,5]
[334500747,1723169447924,-500.0,0.00024398,5]
[334500748,1723169447934,-500.0,0.00024398,5]
[334500749,1723169447945,-500.0,0.00024398,5]
[334500750,1723169447954,-500.0,0.00024398,5]
[334500751,1723169447963,-500.0,0.00024398,5]
[334500752,1723169447974,-500.0,0.00024398,5]
[334500753,1723169447984,-1115.79,0.00024398,5]
[334500754,1723169447994,-2618.81,0.00024398,5]
[334500755,1723169448003,-2320.16,0.00024398,5]
[334500756,1723169448012,-500.0,0.00024398,5]
[334500757,1723169448024,-1133.13,0.00024398,5]
[334500758,1723169448034,-1043.66,0.00024398,5]
[334500759,1723169448044,-502.56501761,0.00024398,5]
[334500760,1723169448053,-500.0,0.00024398,5]
[334500761,1723169448062,-2512.93,0.00024398,5]
[334500762,1723169448073,-920.46,0.00024398,5]
[334500763,1723169448082,-499.09326423,0.00024398,5]
[334500764,1723169448092,-500.0,0.00024398,5]
[334500765,1723169448103,-501.10744197,0.00024398,5]
[334500766,1723169448112,-500.0,0.00024398,5]
[334500767,1723169448121,-501.30015357,0.00024398,5]
[334500768,1723169448131,-501.96772652,0.00024398,5]
[334500769,1723169448140,-2714.88,0.00024398,5]
[334500770,1723169448149,-772.42,0.00024398,5]
[334500771,1723169448158,-500.0,0.00024398,5]
[334500772,1723169448168,-500.76542244,0.00024398,5]
[334500773,1723169448177,-2107.73,0.00024398,5]
[334500774,1723169448187,-500.0,0.00024398,5]
[334500775,1723169448196,-501.43597915,0.00024398,5]
[334500776,1723169448206,-500.0,0.00024398,5]
[334500777,1723169448216,-500.0,0.00024398,5]
[334500778,1723169448225,-502.29581916,0.00024398,5]
[334500779,1723169448234,-502.24756812,0.00024398,5]
[334500780,1723169448244,-500.0,0.00024398,5]
[334500781,1723169448253,-807.03,0.00024398,5]
[334500782,1723169448262,-502.70184875,0.00024398,5]
[334500783,1723169448272,-500.0,0.00024398,5]
[334500784,1723169448282,-500.0,0.00024398,5]
[334500785,1723169448291,-887.09,0.00024398,5]
[334500786,1723169448300,-507.8294358,0.00024398,5]
[334500787,1723169448309,-500.0,0.00024398,5]
[334500788,1723169448318,-676.5,0.00024398,5]
[334500789,1723169448327,-500.0,0.00024398,5]
[334500790,1723169448336,-1827.1,0.00024398,5]
[334500791,1723169448347,-501.51856521,0.00024398,5]
[334500792,1723169448356,-2307.17,0.00024398,5]
[334500793,1723169448366,-502.30162887,0.00024398,5]
[334500794,1723169448375,-500.0,0.00024398,5]
[334500795,1723169448384,-500.0,0.00024398,5]
[334500796,1723169448393,-500.0,0.00024398,5]
[334500797,1723169448403,-1731.14,0.00024398,5]
[334500798,1723169448412,-500.0,0.00024398,5]
[334500799,1723169448421,-501.95457737,0.00024398,5]
[334500800,1723169448431,-891.22,0.00024398,5]
[334500801,1723169448441,-500.0,0.00024398,5]
[334500802,1723169448450,-501.63155941,0.00024398,5]
[334500803,1723169448459,-615.9290076,0.00024398,5]
[334500804,1723169448469,-500.0,0.00024398,5]
[334500805,1723169448479,-500.0,0.00024398,5]
[334500806,1723169448488,-500.0,0.00024398,5]
[334500807,1723169448497,-501.75407568,0.00024398,5]
[334500808,1723169448506,-2387.7,0.00024398,5]
[334500809,1723169448516,-500.0,0.00024398,5]
[334500810,1723169448525,-502.31187884,0.00024398,5]
[334500811,1723169448535,-819.61,0.00024398,5]
[334500812,1723169448544,-500.0,0.00024398,5]
[334500813,1723169448553,-500.0,0.00024398,5]
[334500814,1723169448562,-3928.43,0.00024398,5]
[334500815,1723169448571,-582.39861339,0.00024398,5]
[334500816,1723169448580,-500.0,0.00024398,5]
[334500817,1723169448590,-501.43551587,0.00024398,5]
[334500818,1723169448599,-503.2456087,0.00024398,5]
[334500819,1723169448608,-627.24076766,0.00024398,5]
[334500820,1723169448618,-500.0,0.00024398,5]
[334500821,1723169448627,-500.0,0.00024398,5]
[334500822,1723169448637,-608.28,0.00024398,5]
[334500823,1723169448646,-500.57720889,0.00024398,5]
[334500824,1723169448655,-3446.78,0.00024398,5]
[334500825,1723169448665,-1586.44,0.00024398,5]
[334500826,1723169448754,-512.82,0.00024398,5]
[334500827,1723169448770,-2934.72,0.00024398,5]
[334500828,1723169448779,-500.0,0.00024398,5]
[334500829,1723169448788,-500.0,0.00024398,5]
[334500830,1723169448797,-500.0,0.00024398,5]
[334500831,1723169448807,-502.45886325,0.00024398,5]
[334500832,1723169448816,-501.90031423,0.00024398,5]
[334500833,1723169448825,-500.0,0.00024398,5]
[334500834,1723169448835,-500.0,0.00024398,5]
[334500835,1723169448844,-500.0,0.00024398,5]
[334500836,1723169448854,-500.0,0.00024398,5]
[334500837,1723169448863,-500.0,0.00024398,5]
[334500838,1723169448873,-2500.36,0.00024398,5]
[334500839,1723169448882,-500.0,0.00024398,5]
[334500840,1723169448891,-501.2751814,0.00024398,5]
[334500841,1723169448901,-500.0,0.00024398,5]
[334500842,1723169448910,-1833.33,0.00024398,5]
[334500843,1723169448919,-501.49607627,0.00024398,5]
[334500844,1723169448928,-500.0,0.00024398,5]
[334500845,1723169448938,-500.0,0.00024398,5]
[334500846,1723169448947,-559.18439814,0.00024398,5]
[334500847,1723169448956,-500.0,0.00024398,5]
[334500848,1723169448966,-500.0,0.00024398,5]
[334500849,1723169448976,-502.06762401,0.00024398,5]
[334500850,1723169448985,-1122.68,0.00024398,5]
[334500851,1723169448994,-500.0,0.00024398,5]
[334500852,1723169449004,-500.0,0.00024398,5]
[334500853,1723169449013,-500.0,0.00024398,5]
[334500854,1723169449030,-500.0,0.00024398,5]
[334500855,1723169449039,-1000.0,0.00024398,5]
[334500856,1723169449048,-694.86,0.00024398,5]
[334500857,1723169449058,-500.0,0.00024398,5]
[334500858,1723169449068,-2115.98,0.00024398,5]
[334500859,1723169449077,-592.91,0.00024398,5]
[334500860,1723169449087,-500.0,0.00024398,5]
[334500861,1723169449096,-919.96,0.00024398,5]
[334500862,1723169449106,-500.27450842,0.00024398,5]
[334500863,1723169449115,-500.0,0.00024398,5]
[334500864,1723169449125,-502.35910722,0.00024398,5]
[334500865,1723169449135,-500.0,0.00024398,5]
[334500866,1723169449144,-1664.21,0.00024398,5]
[334500867,1723169449154,-1726.49,0.00024398,5]
[334500868,1723169449163,-502.13938947,0.00024398,5]
[334500869,1723169449173,-557.2,0.00024398,5]
[334500870,1723169449183,-858.77,0.00024398,5]
[334500871,1723169449192,-647.91363147,0.00024398,5]